[Event "Mitropa Online Cup Open 2021"]
[Site "Hybrid"]
[Date "2021.05.04"]
[Round "7.1"]
[White "Sonis, Francesco"]
[Black "Koellner, Ruben Gideon"]
[Result "1-0"]
[ECO "E08"]
[WhiteElo "2493"]
[BlackElo "2412"]
[Annotator "ChessBase"]
[PlyCount "185"]
[EventDate "2021.05.04"]
[EventType "team-tourn"]
[EventCountry "NET"]
[SourceTitle "playchess.com"]
[Source "ChessBase"]
[SourceQuality "1"]
[WhiteTeam "Italy"]
[BlackTeam "Germany"]
[WhiteTeamCountry "ITA"]
[BlackTeamCountry "GER"]
[TimeControl "40/5400+30:1800+30"]

1. d4 {[%emt 0:00:00]} Nf6 {[%emt 0:00:04]} 2. c4 {[%emt 0:00:14]} e6 {[%emt 0:00:05]} 3. Nf3 {[%emt 0:00:10]} d5 {[%emt 0:00:05]} 4. g3 {[%emt 0:00:07]} Bb4+ {[%emt 0:00:06]} 5. Bd2 {[%emt 0:00:03]} Be7 {[%emt 0:00:03]} 6. Bg2 {[%emt 0:00:02]} O-O {[%emt 0:00:35]} 7. Qc2 {[%emt 0:00:06]} c6 {[%emt 0:01:12]} 8. O-O {[%emt 0:00:04]} Nbd7 {[%emt 0:00:21]} 9. Rd1 {[%emt 0:00:06]} b6 {[%emt 0:00:06]} 10. Bf4 {[%emt 0:00:04]} Ba6 {[%emt 0:03:27]} 11. Nbd2 {[%emt 0:07:04]} Rc8 {[%emt 0:09:56]} 12. Ne5 {[%emt 0:07:58]} Nxe5 {[%emt 0:03:28]} 13. dxe5 {[%emt 0:00:12]} Nd7 {[%emt 0:06:15]} 14. h4 {[%emt 0:00:13]} h6 {[%emt 0:06:16]} 15. Qc3 {[%emt 0:04:57]} g5 {[%emt 0:09:18]} 16. hxg5 {[%emt 0:00:16]} hxg5 {[%emt 0:00:04]} 17. Qf3 {[%emt 0:10:16]} Kg7 {[%emt 0:19:36]} 18. Qg4 {[%emt 0:24:45]} Rg8 {[%emt 0:01:33]} 19. Nf3 {[%emt 0:00:54]} Kf8 {[%emt 0:00:23]} 20. Be3 {[%emt 0:01:15]} Bxc4 {[%emt 0:01:29]} 21. Rd2 {[%emt 0:00:58]} c5 {[%emt 0:01:34]} 22. Rc2 {[%emt 0:03:23]} Ke8 {[%emt 0:10:34]} 23. Qh5 {[%emt 0:04:02]} Nf8 {[%emt 0:02:56]} 24. b3 {[%emt 0:01:20]} Ba6 {[%emt 0:02:22]} 25. Rd1 {[%emt 0:00:03]} Bb7 {[%emt 0:01:42]} 26. Bc1 {[%emt 0:01:37]} Ba8 {[%emt 0:07:40]} 27. Qg4 {[%emt 0:02:26]} Ng6 {[%emt 0:05:32]} 28. Bb2 {[%emt 0:03:41]} Rc7 {[%emt 0:00:52]} 29. Bf1 {[%emt 0:04:59]} d4 {[%emt 0:02:40]} 30. e4 {[%emt 0:06:19]} Bb7 {[%emt 0:02:49]} 31. Rdc1 {[%emt 0:04:18]} Qa8 {[%emt 0:01:09]} 32. Bb5+ {[%emt 0:01:29]} Kf8 {[%emt 0:00:42]} 33. Nxg5 {[%emt 0:05:05]} Bxg5 {[%emt 0:00:08]} 34. Qxg5 {[%emt 0:00:02]} Bxe4 {[%emt 0:00:01]} 35. Rd2 {[%emt 0:02:59]} Bf3 {[%emt 0:00:03]} 36. Rxd4 {[%emt 0:00:55]} cxd4 {[%emt 0:01:44]} 37. Rxc7 {[%emt 0:00:18]} Rg7 {[%emt 0:01:00]} 38. Rd7 {[%emt 0:02:45]} Kg8 {[%emt 0:00:25]} 39. Rd8+ {[%emt 0:00:33]} Nf8 {[%emt 0:00:03]} 40. Qxg7+ {[%emt 0:00:00]} Kxg7 {[%emt 0:00:00]} 41. Rxa8 {[%emt 0:01:00]} Bxa8 {[%emt 0:00:06]} 42. Bxd4 {[%emt 0:00:03]} Ng6 {[%emt 0:00:11]} 43. Bd3 {[%emt 0:00:35]} Bf3 {[%emt 0:00:28]} 44. Kf1 {[%emt 0:00:45]} Ne7 {[%emt 0:00:18]} 45. Ke1 {[%emt 0:00:07]} Nd5 {[%emt 0:01:10]} 46. Kd2 {[%emt 0:00:27]} Kf8 {[%emt 0:00:30]} 47. a3 {[%emt 0:00:33]} Kg7 {[%emt 0:02:08]} 48. b4 {[%emt 0:00:24]} Kf8 {[%emt 0:00:29]} 49. b5 {[%emt 0:00:10]} Ke7 {[%emt 0:00:57]} 50. a4 {[%emt 0:00:04]} Kd7 {[%emt 0:00:36]} 51. Bb2 {[%emt 0:00:59]} Kc7 {[%emt 0:02:05]} 52. Ba3 {[%emt 0:00:06]} Kd7 {[%emt 0:00:30]} 53. Bc2 {[%emt 0:00:17]} Kc8 {[%emt 0:00:56]} 54. Bd6 {[%emt 0:00:06]} Kb7 {[%emt 0:02:19]} 55. Bd3 {[%emt 0:00:15]} Kc8 {[%emt 0:00:44]} 56. Bc4 {[%emt 0:00:13]} Kb7 {[%emt 0:01:01]} 57. Bf1 {[%emt 0:00:03]} Kc8 {[%emt 0:02:44]} 58. Bh3 {[%emt 0:02:39]} Kb7 {[%emt 0:02:52]} 59. g4 {[%emt 0:01:36]} Kc8 {[%emt 0:03:51]} 60. Bf8 {[%emt 0:02:18]} Kb7 {[%emt 0:01:04]} 61. g5 {[%emt 0:00:52]} Be4 {[%emt 0:00:15]} 62. Bf1 {[%emt 0:00:15]} Kc8 {[%emt 0:00:31]} 63. Be2 {[%emt 0:00:06]} Kb7 {[%emt 0:01:05]} 64. Bh5 {[%emt 0:01:00]} Bg6 {[%emt 0:00:03]} 65. Bf3 {[%emt 0:00:02]} Kc8 {[%emt 0:02:45]} 66. Bd6 {[%emt 0:00:22]} Bf5 {[%emt 0:00:42]} 67. Bg2 {[%emt 0:00:43]} Bg6 {[%emt 0:00:08]} 68. Bf1 {[%emt 0:02:05]} Be4 {[%emt 0:00:13]} 69. Be2 {[%emt 0:00:03]} Kb7 {[%emt 0:00:07]} 70. Ba3 {[%emt 0:01:09]} Kc7 {[%emt 0:00:25]} 71. Bd1 {[%emt 0:00:35]} Kb7 {[%emt 0:00:27]} 72. Bc1 {[%emt 0:00:03]} Kc7 {[%emt 0:00:18]} 73. f3 {[%emt 0:00:10]} Bf5 {[%emt 0:00:45]} 74. Bb3 {[%emt 0:00:24]} Kb7 {[%emt 0:00:50]} 75. Ke1 {[%emt 0:00:33]} Kc7 {[%emt 0:00:38]} 76. Bd2 {[%emt 0:00:08]} Bd3 {[%emt 0:00:35]} 77. f4 {[%emt 0:00:40]} Kd7 {[%emt 0:00:29]} 78. Kf2 {[%emt 0:00:06]} a6 {[%emt 0:08:35]} 79. bxa6 {[%emt 0:00:26]} Bxa6 {[%emt 0:00:03]} 80. f5 {[%emt 0:00:06]} Bd3 {[%emt 0:01:52]} 81. f6 {[%emt 0:00:57]} Kc6 {[%emt 0:00:56]} 82. Be3 {[%emt 0:00:56]} Bg6 {[%emt 0:01:51]} 83. Bxd5+ {[%emt 0:05:19]} exd5 {[%emt 0:01:35]} 84. Ke2 {[%emt 0:00:14]} b5 {[%emt 0:00:52]} 85. a5 {[%emt 0:00:05]} b4 {[%emt 0:01:17]} 86. Bd2 {[%emt 0:01:31]} Kb5 {[%emt 0:00:52]} 87. Bxb4 {[%emt 0:00:41]} d4 {[%emt 0:00:52]} 88. Bd2 {[%emt 0:00:30]} Kc5 {[%emt 0:00:08]} 89. Kf3 {[%emt 0:00:07]} Kd5 {[%emt 0:00:38]} 90. Kf4 {[%emt 0:00:05]} Kc6 {[%emt 0:01:02]} 91. e6 {[%emt 0:00:21]} Kd6 {[%emt 0:00:47]} 92. e7 {[%emt 0:00:21]} Kd7 {[%emt 0:00:04]} 93. a6 {[%emt 0:00:01]} 1-0

[Event "Mitropa Online Cup Open 2021"]
[Site "Hybrid"]
[Date "2021.05.04"]
[Round "7.1"]
[White "Parvanyan, Ashot"]
[Black "Basso, Pier Luigi"]
[Result "0-1"]
[ECO "D23"]
[WhiteElo "2436"]
[BlackElo "2552"]
[Annotator "ChessBase"]
[PlyCount "80"]
[EventDate "2021.05.04"]
[EventType "team-tourn"]
[EventCountry "NET"]
[SourceTitle "playchess.com"]
[Source "ChessBase"]
[SourceQuality "1"]
[WhiteTeam "Germany"]
[BlackTeam "Italy"]
[WhiteTeamCountry "GER"]
[BlackTeamCountry "ITA"]
[TimeControl "40/5400+30:1800+30"]

1. Nf3 {[%emt 0:00:00]} d5 {[%emt 0:00:14]} 2. d4 {[%emt 0:00:16]} Nf6 {[%emt 0:00:10]} 3. c4 {[%emt 0:00:08]} c6 {[%emt 0:00:10]} 4. Qb3 {[%emt 0:00:09]} dxc4 {[%emt 0:01:34]} 5. Qxc4 {[%emt 0:00:07]} Bg4 {[%emt 0:00:14]} 6. Nbd2 {[%emt 0:00:23]} Nbd7 {[%emt 0:00:53]} 7. g3 {[%emt 0:00:25]} e6 {[%emt 0:00:22]} 8. Bg2 {[%emt 0:00:19]} Bd6 {[%emt 0:00:34]} 9. Qb3 {[%emt 0:00:54]} Nb6 {[%emt 0:01:16]} 10. O-O {[%emt 0:00:42]} O-O {[%emt 0:00:16]} 11. h3 {[%emt 0:00:51]} Bh5 {[%emt 0:00:10]} 12. a4 {[%emt 0:00:18]} a5 {[%emt 0:01:25]} 13. g4 {[%emt 0:00:17]} Bg6 {[%emt 0:00:06]} 14. Ne5 {[%emt 0:00:07]} Bb4 {[%emt 0:05:28]} 15. Rd1 {[%emt 0:00:56]} Qe7 {[%emt 0:21:10]} 16. Nxg6 {[%emt 0:08:17]} hxg6 {[%emt 0:00:10]} 17. Nf3 {[%emt 0:07:42]} Nfd7 {[%emt 0:06:23]} 18. Bg5 {[%emt 0:05:17]} f6 {[%emt 0:07:39]} 19. Bd2 {[%emt 0:06:29]} Rfe8 {[%emt 0:03:26]} 20. e4 {[%emt 0:14:36]} Bxd2 {[%emt 0:20:43]} 21. Rxd2 {[%emt 0:00:54]} Kh7 {[%emt 0:03:21]} 22. h4 {[%emt 0:08:42]} Qb4 {[%emt 0:05:42]} 23. Qc2 {[%emt 0:01:40]} e5 {[%emt 0:02:33]} 24. b3 {[%emt 0:05:04]} c5 {[%emt 0:04:56]} 25. dxe5 {[%emt 0:07:26]} Nxe5 {[%emt 0:00:13]} 26. Nxe5 {[%emt 0:00:14]} fxe5 {[%emt 0:00:05]} 27. Rad1 {[%emt 0:05:56]} Rf8 {[%emt 0:01:51]} 28. Rd6 {[%emt 0:04:56]} Rf4 {[%emt 0:02:21]} 29. h5 {[%emt 0:02:59]} g5 {[%emt 0:02:01]} 30. f3 {[%emt 0:05:24]} c4 {[%emt 0:00:40]} 31. Rg6 {[%emt 0:04:57]} Rc8 {[%emt 0:02:18]} 32. bxc4 {[%emt 0:01:00]} Rxc4 {[%emt 0:00:52]} 33. Qf2 {[%emt 0:02:07]} Rd4 {[%emt 0:00:25]} 34. Rxd4 {[%emt 0:02:54]} exd4 {[%emt 0:00:04]} 35. Qc2 {[%emt 0:00:48]} Nc4 {[%emt 0:04:29]} 36. Kh2 {[%emt 0:04:10]} Ne5 {[%emt 0:02:02]} 37. Rxg5 {[%emt 0:00:28]} Qe7 {[%emt 0:00:07]} 38. Rf5 {[%emt 0:00:29]} Qh4+ {[%emt 0:00:08]} 39. Kg1 {[%emt 0:00:23]} Rxf5 {[%emt 0:00:39]} 40. exf5 {[%emt 0:00:00]} Qe1+ {[%emt 0:00:00]} 0-1

[Event "Mitropa Online Cup Open 2021"]
[Site "Hybrid"]
[Date "2021.05.04"]
[Round "7.3"]
[White "Dragnev, Valentin"]
[Black "Rogic, Davor"]
[Result "1-0"]
[ECO "C97"]
[WhiteElo "2559"]
[BlackElo "2492"]
[Annotator "ChessBase"]
[PlyCount "79"]
[EventDate "2021.05.04"]
[EventType "team-tourn"]
[EventCountry "NET"]
[SourceTitle "playchess.com"]
[Source "ChessBase"]
[SourceQuality "1"]
[WhiteTeam "Austria"]
[BlackTeam "Croatia"]
[WhiteTeamCountry "AUT"]
[BlackTeamCountry "CRO"]
[TimeControl "40/5400+30:1800+30"]

1. e4 {[%emt 0:00:00]} e5 {[%emt 0:00:10]} 2. Nf3 {[%emt 0:00:06]} Nc6 {[%emt 0:00:21]} 3. Bb5 {[%emt 0:00:19]} a6 {[%emt 0:00:24]} 4. Ba4 {[%emt 0:00:06]} Nf6 {[%emt 0:00:09]} 5. O-O {[%emt 0:00:10]} Be7 {[%emt 0:00:16]} 6. Re1 {[%emt 0:00:09]} b5 {[%emt 0:00:14]} 7. Bb3 {[%emt 0:00:06]} d6 {[%emt 0:00:18]} 8. c3 {[%emt 0:00:13]} O-O {[%emt 0:00:19]} 9. h3 {[%emt 0:00:09]} Na5 {[%emt 0:00:18]} 10. Bc2 {[%emt 0:00:06]} c5 {[%emt 0:00:06]} 11. d4 {[%emt 0:00:15]} Qc7 {[%emt 0:00:06]} 12. d5 {[%emt 0:00:08]} Nc4 {[%emt 0:01:31]} 13. b3 {[%emt 0:00:10]} Nb6 {[%emt 0:00:07]} 14. a4 {[%emt 0:00:08]} Bd7 {[%emt 0:03:45]} 15. Qe2 {[%emt 0:00:13]} Rab8 {[%emt 0:03:46]} 16. a5 {[%emt 0:00:53]} Nc8 {[%emt 0:00:48]} 17. Nbd2 {[%emt 0:01:26]} Ne8 {[%emt 0:02:30]} 18. Nf1 {[%emt 0:05:14]} Bd8 {[%emt 0:02:19]} 19. Ng3 {[%emt 0:06:46]} g6 {[%emt 0:03:42]} 20. Rf1 {[%emt 0:07:02]} Ng7 {[%emt 0:02:06]} 21. Nh2 {[%emt 0:00:50]} h5 {[%emt 0:22:24]} 22. Qd2 {[%emt 0:25:50]} c4 {[%emt 0:14:27]} 23. b4 {[%emt 0:01:40]} f5 {[%emt 0:03:16]} 24. Qh6 {[%emt 0:25:08]} f4 {[%emt 0:03:52]} 25. Nf3 {[%emt 0:01:03]} Be8 {[%emt 0:09:40]} 26. Ne2 {[%emt 0:01:30]} Bf6 {[%emt 0:05:41]} 27. Ng5 {[%emt 0:03:48]} Bxg5 {[%emt 0:01:46]} 28. Qxg5 {[%emt 0:00:46]} f3 {[%emt 0:06:47]} 29. gxf3 {[%emt 0:01:42]} Rxf3 {[%emt 0:00:10]} 30. Kg2 {[%emt 0:00:32]} Qf7 {[%emt 0:01:02]} 31. Be3 {[%emt 0:00:53]} Ne7 {[%emt 0:04:05]} 32. Ng1 {[%emt 0:01:20]} Rf6 {[%emt 0:00:11]} 33. f4 {[%emt 0:04:24]} Nxd5 {[%emt 0:06:13]} 34. exd5 {[%emt 0:00:54]} Nf5 {[%emt 0:00:08]} 35. fxe5 {[%emt 0:04:55]} Qxd5+ {[%emt 0:00:29]} 36. Nf3 {[%emt 0:00:38]} dxe5 {[%emt 0:01:45]} 37. Qxf6 {[%emt 0:02:21]} Nxe3+ {[%emt 0:00:27]} 38. Kh2 {[%emt 0:00:40]} Nxc2 {[%emt 0:02:05]} 39. Ng5 {[%emt 0:02:03]} Bf7 {[%emt 0:01:16]} 40. Rad1 {[%emt 0:00:00]} 1-0

[Event "Mitropa Online Cup Open 2021"]
[Site "Hybrid"]
[Date "2021.05.04"]
[Round "7.3"]
[White "Froewis, Georg"]
[Black "Zelcic, Robert"]
[Result "0-1"]
[ECO "A14"]
[WhiteElo "2460"]
[BlackElo "2539"]
[Annotator "ChessBase"]
[PlyCount "114"]
[EventDate "2021.05.04"]
[EventType "team-tourn"]
[EventCountry "NET"]
[SourceTitle "playchess.com"]
[Source "ChessBase"]
[SourceQuality "1"]
[WhiteTeam "Austria"]
[BlackTeam "Croatia"]
[WhiteTeamCountry "AUT"]
[BlackTeamCountry "CRO"]
[TimeControl "40/5400+30:1800+30"]

1. Nf3 {[%emt 0:00:00]} Nf6 {[%emt 0:00:07]} 2. c4 {[%emt 0:00:04]} e6 {[%emt 0:00:22]} 3. b3 {[%emt 0:00:03]} d5 {[%emt 0:01:58]} 4. Bb2 {[%emt 0:00:05]} Be7 {[%emt 0:00:09]} 5. g3 {[%emt 0:01:06]} O-O {[%emt 0:06:35]} 6. Bg2 {[%emt 0:00:09]} a5 {[%emt 0:02:04]} 7. O-O {[%emt 0:03:29]} a4 {[%emt 0:00:12]} 8. Qc2 {[%emt 0:05:06]} Nc6 {[%emt 0:03:32]} 9. d4 {[%emt 0:08:44]} Ne4 {[%emt 0:09:04]} 10. Nbd2 {[%emt 0:04:30]} a3 {[%emt 0:14:32]} 11. Bc3 {[%emt 0:00:11]} Nxc3 {[%emt 0:02:16]} 12. Qxc3 {[%emt 0:00:08]} Bb4 {[%emt 0:00:50]} 13. Qd3 {[%emt 0:01:45]} b6 {[%emt 0:03:05]} 14. Rfd1 {[%emt 0:01:30]} Ba6 {[%emt 0:09:10]} 15. Rac1 {[%emt 0:01:01]} Be7 {[%emt 0:05:56]} 16. Qb1 {[%emt 0:01:00]} Nb4 {[%emt 0:00:06]} 17. Nf1 {[%emt 0:06:36]} Rc8 {[%emt 0:05:41]} 18. Ne3 {[%emt 0:02:18]} c5 {[%emt 0:00:14]} 19. dxc5 {[%emt 0:05:44]} Bxc5 {[%emt 0:00:57]} 20. Nc2 {[%emt 0:02:19]} Qf6 {[%emt 0:06:22]} 21. Nxa3 {[%emt 0:08:45]} e5 {[%emt 0:00:08]} 22. Qb2 {[%emt 0:10:41]} e4 {[%emt 0:04:36]} 23. Nd4 {[%emt 0:02:05]} Nd3 {[%emt 0:03:47]} 24. Rxd3 {[%emt 0:00:07]} exd3 {[%emt 0:00:04]} 25. e3 {[%emt 0:00:03]} dxc4 {[%emt 0:00:23]} 26. bxc4 {[%emt 0:00:47]} Rfe8 {[%emt 0:03:39]} 27. Bf1 {[%emt 0:05:28]} Rcd8 {[%emt 0:01:33]} 28. Rd1 {[%emt 0:03:24]} Bxd4 {[%emt 0:02:08]} 29. exd4 {[%emt 0:00:04]} Qxd4 {[%emt 0:02:58]} 30. Qxd4 {[%emt 0:00:27]} Rxd4 {[%emt 0:00:07]} 31. Rxd3 {[%emt 0:00:06]} Rxd3 {[%emt 0:00:07]} 32. Bxd3 {[%emt 0:00:03]} Re1+ {[%emt 0:01:09]} 33. Kg2 {[%emt 0:01:38]} Bb7+ {[%emt 0:00:13]} 34. Kh3 {[%emt 0:00:09]} Rd1 {[%emt 0:01:05]} 35. Bc2 {[%emt 0:02:48]} Rd2 {[%emt 0:00:07]} 36. f4 {[%emt 0:00:27]} Bc8+ {[%emt 0:00:10]} 37. g4 {[%emt 0:00:04]} Re2 {[%emt 0:04:01]} 38. Kh4 {[%emt 0:03:04]} Rxh2+ {[%emt 0:03:30]} 39. Kg3 {[%emt 0:00:06]} Rh1 {[%emt 0:00:10]} 40. f5 {[%emt 0:00:00]} Bb7 {[%emt 0:00:00]} 41. Nb5 {[%emt 0:00:41]} Rf1 {[%emt 0:05:10]} 42. Nd6 {[%emt 0:00:51]} Rf3+ {[%emt 0:00:24]} 43. Kh4 {[%emt 0:00:05]} Rc3 {[%emt 0:02:24]} 44. Bb3 {[%emt 0:00:21]} Bg2 {[%emt 0:02:14]} 45. g5 {[%emt 0:00:05]} Kf8 {[%emt 0:02:52]} 46. Kg4 {[%emt 0:03:00]} Bc6 {[%emt 0:00:44]} 47. Nc8 {[%emt 0:02:09]} b5 {[%emt 0:01:07]} 48. cxb5 {[%emt 0:00:15]} Bxb5 {[%emt 0:00:35]} 49. Nd6 {[%emt 0:00:06]} Be2+ {[%emt 0:00:34]} 50. Kh4 {[%emt 0:01:38]} f6 {[%emt 0:03:32]} 51. gxf6 {[%emt 0:00:06]} gxf6 {[%emt 0:00:05]} 52. Ne4 {[%emt 0:00:08]} Rc6 {[%emt 0:00:06]} 53. Kg3 {[%emt 0:02:05]} Ke7 {[%emt 0:02:26]} 54. Bd5 {[%emt 0:00:25]} Rc7 {[%emt 0:01:00]} 55. a4 {[%emt 0:02:38]} Bd1 {[%emt 0:00:58]} 56. a5 {[%emt 0:00:47]} Ra7 {[%emt 0:00:07]} 57. Nc3 {[%emt 0:01:34]} Rxa5 {[%emt 0:00:27]} 0-1

[Event "Mitropa Online Cup Open 2021"]
[Site "Hybrid"]
[Date "2021.05.04"]
[Round "7.3"]
[White "Kovacevic, Blazimir"]
[Black "Blohberger, Felix"]
[Result "0-1"]
[ECO "D33"]
[WhiteElo "2410"]
[BlackElo "2463"]
[Annotator "ChessBase"]
[PlyCount "94"]
[EventDate "2021.05.04"]
[EventType "team-tourn"]
[EventCountry "NET"]
[SourceTitle "playchess.com"]
[Source "ChessBase"]
[SourceQuality "1"]
[WhiteTeam "Croatia"]
[BlackTeam "Austria"]
[WhiteTeamCountry "CRO"]
[BlackTeamCountry "AUT"]
[TimeControl "40/5400+30:1800+30"]

1. c4 {[%emt 0:00:00]} c5 {[%emt 0:00:55]} 2. Nf3 {[%emt 0:00:25]} Nf6 {[%emt 0:00:36]} 3. Nc3 {[%emt 0:00:08]} e6 {[%emt 0:00:54]} 4. g3 {[%emt 0:01:04]} d5 {[%emt 0:01:25]} 5. cxd5 {[%emt 0:00:18]} exd5 {[%emt 0:01:08]} 6. d4 {[%emt 0:00:21]} Nc6 {[%emt 0:00:16]} 7. Bg2 {[%emt 0:00:13]} cxd4 {[%emt 0:00:09]} 8. Nxd4 {[%emt 0:00:11]} Bc5 {[%emt 0:00:09]} 9. Nb3 {[%emt 0:07:10]} Bb6 {[%emt 0:00:07]} 10. O-O {[%emt 0:00:11]} d4 {[%emt 0:00:11]} 11. Na4 {[%emt 0:03:34]} O-O {[%emt 0:00:06]} 12. Nxb6 {[%emt 0:16:50]} axb6 {[%emt 0:00:09]} 13. Bg5 {[%emt 0:11:29]} Re8 {[%emt 0:00:06]} 14. e3 {[%emt 0:01:41]} d3 {[%emt 0:00:10]} 15. Bxf6 {[%emt 0:05:06]} gxf6 {[%emt 0:00:09]} 16. Qd2 {[%emt 0:08:53]} Bf5 {[%emt 0:09:58]} 17. Rfd1 {[%emt 0:04:59]} Qd6 {[%emt 0:07:57]} 18. f3 {[%emt 0:06:36]} Red8 {[%emt 0:10:54]} 19. Bf1 {[%emt 0:06:28]} Be6 {[%emt 0:06:56]} 20. Bxd3 {[%emt 0:01:56]} Bxb3 {[%emt 0:03:55]} 21. Bxh7+ {[%emt 0:00:10]} Kxh7 {[%emt 0:00:07]} 22. Qxd6 {[%emt 0:00:02]} Rxd6 {[%emt 0:00:08]} 23. Rxd6 {[%emt 0:00:03]} Be6 {[%emt 0:05:10]} 24. a3 {[%emt 0:02:03]} Kg7 {[%emt 0:08:23]} 25. e4 {[%emt 0:01:11]} Kf8 {[%emt 0:01:13]} 26. Kf2 {[%emt 0:02:54]} Ke7 {[%emt 0:03:26]} 27. Rd2 {[%emt 0:03:02]} Na5 {[%emt 0:01:57]} 28. Rc1 {[%emt 0:01:58]} Nc4 {[%emt 0:00:54]} 29. Rdc2 {[%emt 0:01:35]} b5 {[%emt 0:06:06]} 30. g4 {[%emt 0:00:38]} Rd8 {[%emt 0:02:29]} 31. a4 {[%emt 0:05:28]} Ne5 {[%emt 0:01:35]} 32. Ra1 {[%emt 0:01:21]} bxa4 {[%emt 0:02:42]} 33. Rc7+ {[%emt 0:00:13]} Rd7 {[%emt 0:00:17]} 34. Rxd7+ {[%emt 0:01:04]} Bxd7 {[%emt 0:00:08]} 35. Rb1 {[%emt 0:00:58]} b5 {[%emt 0:00:49]} 36. h4 {[%emt 0:00:07]} b4 {[%emt 0:05:14]} 37. Ke3 {[%emt 0:01:50]} Be6 {[%emt 0:02:02]} 38. f4 {[%emt 0:01:26]} Nxg4+ {[%emt 0:01:46]} 39. Kd4 {[%emt 0:00:04]} f5 {[%emt 0:02:41]} 40. e5 {[%emt 0:00:00]} Kf8 {[%emt 0:00:00]} 41. Kc5 {[%emt 0:08:53]} a3 {[%emt 0:06:10]} 42. bxa3 {[%emt 0:04:07]} bxa3 {[%emt 0:00:08]} 43. Rb8+ {[%emt 0:00:23]} Kg7 {[%emt 0:00:12]} 44. Ra8 {[%emt 0:00:02]} a2 {[%emt 0:00:07]} 45. Kd4 {[%emt 0:00:04]} Kg6 {[%emt 0:02:12]} 46. Kc3 {[%emt 0:03:32]} Ne3 {[%emt 0:00:45]} 47. Kb2 {[%emt 0:01:16]} Kh7 {[%emt 0:00:19]} 0-1

[Event "Mitropa Online Cup Open 2021"]
[Site "Hybrid"]
[Date "2021.05.04"]
[Round "7.3"]
[White "Tica, Sven"]
[Black "Schwabeneder, Florian"]
[Result "1/2-1/2"]
[ECO "E64"]
[WhiteElo "2396"]
[BlackElo "2443"]
[Annotator "NA"]
[PlyCount "63"]
[EventDate "2021.05.04"]
[EventType "team-tourn"]
[EventCountry "NET"]
[SourceTitle "playchess.com"]
[Source "ChessBase"]
[SourceQuality "1"]
[WhiteTeam "Croatia"]
[BlackTeam "Austria"]
[WhiteTeamCountry "CRO"]
[BlackTeamCountry "AUT"]
[TimeControl "40/5400+30:1800+30"]

1. d4 {[%emt 0:00:00]} Nf6 {[%emt 0:00:14]} 2. c4 {[%emt 0:00:04]} c5 {[%emt 0:00:14]} 3. d5 {[%emt 0:00:08]} g6 {[%emt 0:00:15]} 4. Nc3 {[%emt 0:00:05]} Bg7 {[%emt 0:00:33]} 5. g3 {[%emt 0:00:21]} O-O {[%emt 0:00:14]} 6. Bg2 {[%emt 0:00:02]} d6 {[%emt 0:00:04]} 7. Nf3 {[%emt 0:00:59]} e5 {[%emt 0:00:26]} 8. O-O {[%emt 0:06:20]} Na6 {[%emt 0:00:28]} 9. Ne1 {[%emt 0:02:53]} Nc7 {[%emt 0:09:30]} 10. Nd3 {[%emt 0:13:42]} Ng4 {[%emt 0:06:09]} 11. f3 {[%emt 0:11:41]} Nh6 {[%emt 0:01:00]} 12. e4 {[%emt 0:01:51]} f5 {[%emt 0:00:59]} 13. Be3 {[%emt 0:01:58]} Bd7 {[%emt 0:23:12]} 14. a4 {[%emt 0:05:56]} b6 {[%emt 0:07:56]} 15. Qd2 {[%emt 0:04:48]} Nf7 {[%emt 0:00:07]} 16. b4 {[%emt 0:02:47]} h5 {[%emt 0:10:57]} 17. a5 {[%emt 0:09:04]} h4 {[%emt 0:02:38]} 18. axb6 {[%emt 0:06:45]} axb6 {[%emt 0:00:05]} 19. Rxa8 {[%emt 0:00:20]} Qxa8 {[%emt 0:00:58]} 20. Bh3 {[%emt 0:00:25]} hxg3 {[%emt 0:08:58]} 21. hxg3 {[%emt 0:00:56]} Qa3 {[%emt 0:05:31]} 22. Rb1 {[%emt 0:06:28]} f4 {[%emt 0:04:41]} 23. Bxd7 {[%emt 0:03:59]} fxe3 {[%emt 0:00:05]} 24. Qb2 {[%emt 0:05:36]} Qxb2 {[%emt 0:02:33]} 25. Rxb2 {[%emt 0:00:10]} Ng5 {[%emt 0:00:06]} 26. Bg4 {[%emt 0:00:32]} Nxf3+ {[%emt 0:01:51]} 27. Bxf3 {[%emt 0:00:32]} Rxf3 {[%emt 0:00:04]} 28. Kg2 {[%emt 0:00:05]} Rf8 {[%emt 0:02:00]} 29. b5 {[%emt 0:06:51]} Ra8 {[%emt 0:04:20]} 30. Ra2 {[%emt 0:00:11]} Rxa2+ {[%emt 0:00:30]} 31. Nxa2 {[%emt 0:00:09]} Ne8 {[%emt 0:01:38]} 32. Kf3 {[%emt 0:00:44]} 1/2-1/2